fUSD/lending_fUSD_20250929
["ID","MTS","AMOUNT","RATE_DAILY","PERIOD"]
[388444703,1759170648424,-500.0,0.00017274,2]
[388444705,1759170648434,-522.24588858,0.00017274,2]
[388444714,1759170648509,-978.75411142,0.00017274,2]
[388444716,1759170648519,-549.0,0.00017274,2]
[388444718,1759170648528,-150.0,0.00017274,2]
[388444720,1759170648538,-500.0,0.00017274,2]
[388444722,1759170648548,-1322.0,0.00017274,2]
[388444724,1759170648558,-150.0,0.00017274,2]
[388444726,1759170648568,-500.0,0.00017274,2]
[388444728,1759170648577,-214.50320107,0.00017274,2]
[388444731,1759170648588,-150.0,0.00017274,2]
[388444733,1759170648598,-150.0,0.00017274,2]
[388444736,1759170648615,-200.0,0.00017274,2]
[388444738,1759170648625,-1067.0,0.00017276,2]
[388444740,1759170648635,-1067.0,0.00017283,2]
[388444742,1759170648646,-341.0,0.00017298,2]
[388444744,1759170648655,-467.14158334,0.00017309,2]
[388444746,1759170648666,-150.0,0.00017312,2]
[388444748,1759170648676,-200.0,0.00017339,2]
[388444750,1759170648686,-200.0,0.0001734,2]
[388444753,1759170648696,-150.0,0.00017356,2]
[388444755,1759170648706,-3013.4189401,0.00017365,2]
[388444757,1759170648717,-171.8776186,0.00017365,2]
[388444759,1759170648727,-9401.4513264,0.00017365,2]
[388444761,1759170648737,-1067.0,0.00017376,2]
[388444763,1759170648747,-1000.0,0.00017399,2]
[388444765,1759170648756,-3018.9873657,0.0001742,2]
[388444768,1759170648769,-1798.0126343,0.0001742,2]
[388444770,1759170648779,-200.0,0.00017423,2]
[388444772,1759170648790,-151.0,0.00017423,2]
[388444774,1759170648799,-200.0,0.00017423,2]
[388444776,1759170648809,-151.0,0.00017423,2]
[388444778,1759170648819,-773.07,0.00017427,2]
[388444780,1759170648829,-180.0,0.00017433,2]
[388444782,1759170648839,-2046.9173657,0.00017438,2]
[388444785,1759170648857,-153.4326343,0.00017438,2]
[388444787,1759170648866,-337.98872837,0.0001748,2]
[388444789,1759170648877,-2196.46991754,0.0001748,2]
[388444792,1759170648887,-1441.65269449,0.000175,2]
[388445215,1759170712227,700.0,0.00015597,2]
[388445217,1759170713819,700.0,0.00016556,2]
[388445303,1759170795390,418.48,0.00016407,2]
[388445344,1759170894139,709.64,0.00016333,2]
[388445347,1759170915052,500.0,0.00027397,120]
[388445348,1759170917166,500.0,0.00027671,120]
[388445349,1759170917198,500.0,0.00027945,120]
[388445378,1759170924393,200.0,0.00016333,2]
[388445384,1759171003879,1444.0,0.00029041,120]
[388445388,1759171129816,165.75,0.00016323,2]
[388445391,1759171140696,463.61,0.00016319,2]
[388445421,1759171264926,9531.37,0.00016289,2]
[388445429,1759171318861,150.0,0.00016285,7]
[388445434,1759171350270,1000.0,0.00016438,2]
[388445436,1759171379399,666.0,0.00016275,3]
[388445450,1759171491322,150.0,0.00016279,2]
[388445453,1759171495222,250.0,0.00016279,2]
[388445458,1759171562370,168.86,0.00016254,2]
[388445462,1759171594123,314.47312662,0.00016544,2]
[388445465,1759171617999,166.47344729,0.00016544,2]
[388445477,1759171729249,24998.13,0.00016251,2]
[388445481,1759171786987,1444.0,0.00029041,120]
[388445482,1759171832327,-1200.0,0.00016643,2]
[388445483,1759171832338,-195.0,0.00016643,2]
[388445484,1759171832358,-150.0,0.00016644,2]
[388445485,1759171832369,-150.0,0.00016644,2]
[388445486,1759171832379,-150.0,0.00016644,2]
[388445487,1759171832391,-150.0,0.00016644,2]
[388445488,1759171832402,-150.0,0.00016644,2]
[388445489,1759171832414,-150.0,0.00016644,2]
[388445490,1759171832424,-150.0,0.00016644,2]
[388445491,1759171832435,-150.0,0.00016644,2]
[388445492,1759171832447,-250.0,0.00016647,2]
[388445493,1759171832459,-300.0,0.00016648,2]
[388445494,1759171832471,-2500.0,0.0001665,2]
[388445495,1759171832482,-410.1017532,0.00016656,2]
[388445496,1759171832493,-2500.0,0.00016708,2]
[388445497,1759171832504,-550.0,0.00016763,2]
[388445498,1759171832515,-200.0,0.0001688,2]
[388445499,1759171832527,-500.0,0.0001688,2]
[388445500,1759171832538,-599.60298507,0.0001688,2]
[388445501,1759171832549,-500.0,0.0001688,2]
[388445502,1759171832560,-500.0,0.0001688,2]
[388445503,1759171832572,-500.0,0.0001688,2]
[388445504,1759171832584,-500.0,0.0001688,2]
[388445505,1759171832597,-500.0,0.0001688,2]
[388445506,1759171832607,-500.0,0.0001688,2]
[388445507,1759171832619,-500.0,0.0001688,2]
[388445508,1759171832631,-8260.13072239,0.0001688,2]
[388445510,1759171832642,-623.58710448,0.0001688,2]
[388445512,1759171832652,-334.85013264,0.0001688,2]
[388445514,1759171832663,-239.84119403,0.0001688,2]
[388445516,1759171832677,-295.81230929,0.0001688,2]
[388445518,1759171832688,-28.09519154,0.0001688,2]
[388445520,1759171832703,-122.90480846,0.0001688,2]
[388445521,1759171832714,-322.6107,0.0001688,2]
[388445522,1759171832726,-8565.75555911,0.00016935,2]
[388445523,1759171832738,-1021.95,0.00016949,2]
[388445524,1759171832750,-150.0,0.00016952,2]
[388445526,1759171832762,-6116.06573984,0.0001699,2]
[388445528,1759171832772,-308.72,0.00016997,2]
[388445531,1759171832790,-168.61,0.00017024,2]
[388445533,1759171832801,-168.387,0.00017028,2]
[388445535,1759171832811,-887.50793781,0.00017041,2]
[388445537,1759171832822,-700.59732956,0.00017116,2]
[388445538,1759171832850,-972.67038173,0.00017116,2]
[388445539,1759171832865,-871.07628871,0.00017116,2]
[388445540,1759171832876,-463.61,0.00017135,2]
[388445541,1759171832887,-408.98640697,0.00017165,2]
[388445542,1759171832930,-458.99100647,0.00017165,2]
[388445543,1759171832942,-132.02258656,0.00017165,2]
[388445544,1759171832954,-690.4967436,0.00017167,2]
[388445545,1759171832967,-309.5032564,0.00017167,2]
[388445546,1759171832978,-430.51167614,0.0001717,2]
[388445547,1759171833002,-569.48832386,0.0001717,2]
[388445548,1759171833012,-1000.0,0.00017179,2]
[388445549,1759171833023,-1000.0,0.00017179,2]
[388445550,1759171833035,-1000.0,0.00017181,2]
[388445552,1759171833047,-1000.0,0.00017185,2]
[388445553,1759171833057,-1000.0,0.0001719,2]
[388445554,1759171833068,-1000.0,0.00017191,2]
[388445556,1759171833080,-1000.0,0.00017191,2]
[388445558,1759171833091,-1000.0,0.00017198,2]
[388445560,1759171833102,-1000.0,0.00017202,2]
[388445562,1759171833113,-971.43327405,0.00017207,2]
[388445565,1759171833136,-28.56672595,0.00017207,2]
[388445568,1759171833147,-637.57755728,0.00017208,2]
[388445570,1759171833160,-362.42244272,0.00017208,2]
[388445572,1759171833171,-1000.0,0.00017209,2]
[388445574,1759171833184,-577.57755734,0.00017219,2]
[388445576,1759171833199,-422.42244266,0.00017219,2]
[388445578,1759171833210,-377.94255734,0.00017219,2]
[388445583,1759171833246,-404.03599997,0.00017219,2]
[388445719,1759171838560,-500.0,0.00016646,2]
[388445721,1759171838570,-404.04137623,0.00016646,2]
[388445723,1759171838582,-95.95862377,0.00016646,2]
[388445726,1759171838592,-500.0,0.00016646,2]
[388445728,1759171838603,-500.0,0.00016646,2]
[388445730,1759171838612,-500.0,0.00016646,2]
[388445731,1759171838622,-500.0,0.00016646,2]
[388445734,1759171838633,-500.0,0.00016646,2]
[388445736,1759171838642,-500.0,0.00016646,2]
[388445738,1759171838652,-500.0,0.00016646,2]
[388445740,1759171838662,-446.20688647,0.00016646,2]
[388445743,1759171838687,-53.79311353,0.00016646,2]
[388445745,1759171838697,-315.24586302,0.00016646,2]
[388445747,1759171838708,-500.0,0.00016646,2]
[388445749,1759171838719,-218.02144269,0.00017219,2]
[388445751,1759171838729,-674.84582797,0.00017219,2]
[388445753,1759171838742,-325.15417203,0.00017219,2]
[388445755,1759171838752,-150.0,0.00017221,2]
[388445758,1759171838763,-147.81265633,0.00017223,2]
[388445760,1759171838775,-852.18734367,0.00017223,2]
[388445762,1759171838785,-168.42703472,0.00017228,2]
[388445764,1759171838796,-179.10372625,0.00017228,2]
[388445766,1759171838805,-596.29295276,0.00017228,2]
[388445768,1759171838816,-500.0,0.00017229,2]
[388445770,1759171838826,-401.4094343,0.00017229,2]
[388445772,1759171838836,-500.0,0.00017229,2]
[388445774,1759171838847,-500.0,0.00017229,2]
[388445776,1759171838857,-1425.0,0.00017229,2]
[388445779,1759171838868,-1425.0,0.00017232,2]
[388445781,1759171838878,-1425.0,0.00017233,2]
[388445783,1759171838889,-1000.0,0.00017234,2]
[388445785,1759171838899,-1000.0,0.00017237,2]
[388445787,1759171838909,-69.0044372,0.0001724,2]
[388445789,1759171838923,-1355.9955628,0.0001724,2]
[388445791,1759171838933,-1000.0,0.00017244,2]
[388445793,1759171838944,-648.76357468,0.00017245,2]
[388445796,1759171838958,-351.23642532,0.00017245,2]
[388445798,1759171838969,-248.52483227,0.00017252,2]
[388445800,1759171838979,-1000.0,0.00017256,2]
[388445802,1759171838989,-1425.0,0.00017258,2]
[388445804,1759171838999,-211.96288243,0.00017259,2]
[388445806,1759171839010,-150.0,0.0001726,2]
[388445808,1759171839020,-150.0,0.0001726,2]
[388445810,1759171839030,-1000.0,0.00017262,2]
[388445812,1759171839040,-1000.0,0.00017264,2]
[388445814,1759171839049,-366.17373438,0.00017268,2]
[388445816,1759171839061,-1058.82626562,0.00017268,2]
[388445818,1759171839071,-1425.0,0.00017268,2]
[388445820,1759171839082,-1000.0,0.00017272,2]
[388445822,1759171839092,-514.13964029,0.00017272,2]
[388445824,1759171839102,-1425.0,0.00017278,2]
[388445826,1759171839113,-150.0,0.0001728,2]
[388445829,1759171839124,-1000.0,0.00017281,2]
[388445831,1759171839136,-1000.0,0.00017282,2]
[388445833,1759171839146,-1425.0,0.00017285,2]
[388445835,1759171839156,-1000.0,0.00017287,2]
[388445837,1759171839165,-1000.0,0.00017287,2]
[388445839,1759171839175,-898.67028968,0.00017292,2]
[388445841,1759171839186,-1425.0,0.00017292,2]
[388445843,1759171839197,-654.9626717,0.00017296,2]
[388445845,1759171839207,-2000.0,0.000173,2]
[388445847,1759171839218,-1000.0,0.00017304,2]
[388445849,1759171839228,-1000.0,0.00017306,2]
[388445851,1759171839238,-1000.0,0.0001731,2]
[388445853,1759171839248,-151.0,0.00017311,2]
[388445855,1759171839259,-1000.0,0.00017314,2]
[388445857,1759171839268,-1425.0,0.00017314,2]
[388445859,1759171839281,-150.0,0.00017319,2]
[388445861,1759171839291,-1000.0,0.00017319,2]
[388445863,1759171839301,-1425.0,0.0001732,2]
[388445865,1759171839311,-1425.0,0.00017321,2]
[388445866,1759171839321,-955.04546165,0.00017325,2]
[388445867,1759171839331,-1425.0,0.00017326,2]
[388445868,1759171839340,-1425.0,0.00017326,2]
[388445869,1759171839351,-1000.0,0.00017328,2]
[388445870,1759171839361,-150.0,0.00017331,2]
[388445871,1759171839371,-1425.0,0.00017332,2]
[388445872,1759171839382,-1000.0,0.00017335,2]
[388445873,1759171839392,-1000.0,0.0001734,2]
[388445874,1759171839401,-150.0,0.00017345,2]
[388445875,1759171839411,-211.96288243,0.00017347,2]
[388445876,1759171839420,-150.0,0.00017349,2]
[388445877,1759171839430,-1000.0,0.0001735,2]
[388445878,1759171839439,-1000.0,0.0001735,2]
[388445879,1759171839448,-1425.0,0.00017352,2]
[388445880,1759171839457,-1000.0,0.00017353,2]
[388445881,1759171839467,-1425.0,0.00017353,2]
[388445882,1759171839477,-1000.0,0.00017357,2]
[388445883,1759171839486,-1000.0,0.00017358,2]
[388445884,1759171839495,-200.0,0.0001736,2]
[388445885,1759171839505,-1425.0,0.00017365,2]
[388445886,1759171839514,-1000.0,0.00017367,2]
[388445888,1759171839525,-500.0,0.0001737,2]
[388445889,1759171839535,-1000.0,0.00017371,2]
[388445890,1759171839545,-1000.0,0.00017375,2]
[388445891,1759171839554,-150.0,0.00017378,2]
[388445893,1759171839563,-150.0,0.00017384,2]
[388445895,1759171839573,-1000.0,0.00017384,2]
[388445897,1759171839582,-1425.0,0.00017385,2]
[388445899,1759171839592,-1425.0,0.00017387,2]
[388445901,1759171839601,-1000.0,0.00017389,2]
[388445903,1759171839611,-1000.0,0.00017389,2]
[388445905,1759171839619,-1425.0,0.00017389,2]
[388445907,1759171839630,-1000.0,0.00017394,2]
[388445909,1759171839639,-1000.0,0.00017399,2]
[388445911,1759171839649,-500.53,0.00017399,2]
[388445913,1759171839658,-1000.0,0.00017402,2]
[388445915,1759171839668,-1425.0,0.00017406,2]
[388445918,1759171839682,-1000.0,0.00017407,2]
[388445920,1759171839692,-1000.0,0.00017409,2]
[388445922,1759171839701,-1000.0,0.00017409,2]
[388445924,1759171839711,-150.0,0.00017422,2]
[388445926,1759171839722,-1000.0,0.00017424,2]
[388445928,1759171839731,-151.0,0.00017428,2]
[388445930,1759171839741,-1000.0,0.00017428,2]
[388445932,1759171839751,-150.0,0.0001745,2]
[388445934,1759171839761,-150.0,0.00017466,2]
[388445935,1759171839770,-2132.0,0.00017485,2]
[388445937,1759171839779,-1425.0,0.0001749,2]
[388445939,1759171839789,-150.0,0.00017491,2]
[388445942,1759171839798,-12531.78166163,0.000175,2]
[388445943,1759171839808,-168.99436418,0.000175,2]
[388445946,1759171839817,-600.0,0.000175,6]
[388445948,1759171839827,-700.0,0.00017515,2]
[388445949,1759171839836,-357.21,0.00017527,2]
[388445952,1759171839846,-7986.28388363,0.0001754,2]
[388445953,1759171839855,-1092.62086,0.0001756,2]
[388445955,1759171839865,-150.0,0.00017568,2]
[388445957,1759171839874,-150.0,0.00017568,2]
[388445959,1759171839884,-1092.62086,0.0001757,2]
[388445961,1759171839892,-1092.62086,0.0001757,2]
[388445963,1759171839902,-1092.62086,0.0001757,2]
[388445965,1759171839911,-1092.62086,0.0001757,2]
[388445967,1759171839920,-1092.62085,0.0001757,2]
[388445970,1759171839931,-341.68850042,0.00017584,2]
[388445972,1759171839940,-1200.0,0.000176,6]
[388445975,1759171839950,-225.0,0.00017612,2]
[388445977,1759171839960,-388.57487406,0.00017619,2]
[388445979,1759171839969,-357.21,0.00017664,2]
[388445981,1759171839979,-1800.0,0.000177,6]
[388445983,1759171839988,-615.16749293,0.00017726,2]
[388445985,1759171839999,-500.0,0.00017726,2]
[388445988,1759171840008,-1000.0,0.00017777,2]
[388445991,1759171840017,-618.97120748,0.0001779,2]
[388445993,1759171840027,-204.24611944,0.0001779,2]
[388445995,1759171840036,-2400.0,0.000178,6]
[388445997,1759171840045,-357.21,0.00017801,2]
[388445999,1759171840056,-260.0,0.00017869,2]
[388446001,1759171840065,-500.0,0.00017873,2]
[388446003,1759171840075,-500.0,0.00017873,2]
[388446005,1759171840085,-448.14747033,0.00017873,2]
[388446009,1759171840106,-51.85252967,0.00017873,2]
[388446011,1759171840116,-500.0,0.00017873,2]
[388446013,1759171840125,-500.0,0.00017873,2]
[388446015,1759171840136,-500.0,0.00017873,2]
[388446017,1759171840146,-500.0,0.00017873,2]
[388446018,1759171840155,-500.0,0.00017873,2]
[388446020,1759171840164,-106.06114055,0.00017873,2]
[388446023,1759171840176,-377.69694672,0.00017873,2]
[388446025,1759171840185,-145.97568643,0.00017873,2]
[388446027,1759171840197,-354.02431357,0.00017873,2]
[388446029,1759171840206,-500.0,0.00017873,2]
[388446031,1759171840215,-158.19095641,0.00017873,2]
[388446034,1759171840236,-341.80904359,0.00017873,2]
[388446036,1759171840246,-500.0,0.00017873,2]
[388446038,1759171840255,-150.0,0.00017877,2]
[388446040,1759171840266,-100.88255641,0.00017877,2]
[388446062,1759171840469,-515.38,0.00016644,2]
[388446064,1759171840479,-515.38,0.00016918,2]
[388446066,1759171840488,-338.24,0.00017192,2]
[388446071,1759171840523,-177.14,0.00017192,2]
[388446073,1759171840532,-49.11744359,0.00017877,2]
[388446074,1759171840542,-151.0,0.00017887,2]
[388446076,1759171840552,-151.0,0.00017887,2]
[388446078,1759171840561,-8194.02815531,0.0001789,2]
[388446080,1759171840573,-5452.3,0.0001789,2]
[388446083,1759171840584,-10899.88899999,0.0001789,2]
[388446085,1759171840596,-452.33715989,0.0001789,2]
[388446087,1759171840607,-272.24010028,0.0001789,2]
[388446091,1759171840641,-385.74629909,0.00017466,2]
[388446093,1759171840652,-129.63370091,0.00017466,2]
[388446095,1759171840662,-82038.36110831,0.0001789,2]
[388446097,1759171840671,-3000.0,0.000179,6]
[388446100,1759171840686,-437.65874901,0.000179,2]
[388446102,1759171840695,-308.72,0.000179,2]
[388446104,1759171840705,-463.61,0.00017951,2]
[388446106,1759171840714,-64057.67035778,0.00017971,2]
[388446108,1759171840725,-115653.0000006,0.00017971,2]
[388446372,1759171843150,-3025.16,0.00016646,2]
[388446375,1759171843160,-3025.16,0.0001692,2]
[388446378,1759171843170,-3025.16,0.00017194,2]
[388446381,1759171843180,-515.38,0.0001774,2]
[388446384,1759171843191,-3025.16,0.00017742,2]
[388446387,1759171843201,-24702.33623024,0.00017971,2]
[388446391,1759171843216,-678.096135,0.00017971,2]
[388446395,1759171843228,-32809.67400001,0.00017971,2]
[388446398,1759171843239,-862.6000003,0.00017971,2]
[388446444,1759171843466,-448993.38725516,0.00017971,2]
[388446446,1759171843476,-168.99436418,0.00017971,2]
[388446449,1759171843486,-618.97120743,0.00017971,2]
[388446452,1759171843496,-151.0,0.00017976,2]
[388446454,1759171843506,-204.24611943,0.00017995,2]
[388446456,1759171843516,-151.0,0.00017997,2]
[388446458,1759171843525,-251291.122272,0.00018,2]
[388446460,1759171843535,-7930.92784165,0.00018,2]
[388446462,1759171843545,-4817.0,0.00018004,2]
[388446465,1759171843555,-515.40236609,0.00018014,2]
[388446467,1759171843564,-3025.16,0.00018016,2]
[388446469,1759171843574,-474.44399432,0.00018063,2]
[388446471,1759171843583,-618.97120743,0.00018153,2]
[388446473,1759171843593,-150.0,0.00018185,2]
[388446475,1759171843603,-171.22187918,0.0001819,2]
[388446477,1759171843612,-5000.0,0.000182,2]
[388446479,1759171843622,-158.32248322,0.000182,2]
[388446481,1759171843633,-204.24611943,0.000182,2]
[388446483,1759171843642,-4817.0,0.00018247,2]
[388446485,1759171843651,-248.71531821,0.00018249,2]
[388446487,1759171843663,-334.5472959,0.00018249,2]
[388446489,1759171843673,-500.0,0.00018273,2]
[388446491,1759171843688,-500.0,0.00018273,2]
[388446493,1759171843697,-500.0,0.00018273,2]
[388446495,1759171843707,-500.0,0.00018273,2]
[388446497,1759171843718,-500.0,0.00018273,2]
[388446499,1759171843728,-500.0,0.00018273,2]
[388446501,1759171843737,-500.0,0.00018273,2]
[388446503,1759171843747,-261.90604596,0.00018273,2]
[388446505,1759171843757,-500.0,0.00018273,2]
[388446507,1759171843767,-635.11771507,0.00018273,2]
[388446510,1759171843778,-165.87224074,0.00018273,2]
[388446512,1759171843787,-500.0,0.00018273,2]
[388446514,1759171843798,-500.0,0.00018273,2]
[388446557,1759171844234,-500.0,0.00018273,2]
[388446559,1759171844251,-500.0,0.00018273,2]
[388446562,1759171844261,-500.0,0.00018273,2]
[388446564,1759171844271,-157.02840596,0.00018273,2]
[388446566,1759171844282,-500.0,0.00018273,2]
[388446568,1759171844292,-500.0,0.00018273,2]
[388446570,1759171844301,-164.24172155,0.00018273,2]
[388446572,1759171844310,-500.0,0.00018273,2]
[388446574,1759171844320,-500.0,0.00018273,2]
[388446576,1759171844329,-500.0,0.00018273,2]
[388446578,1759171844339,-500.0,0.00018273,2]
[388446580,1759171844349,-500.0,0.00018273,2]
[388446582,1759171844359,-500.0,0.00018273,2]
[388446584,1759171844369,-500.0,0.00018273,2]
[388446586,1759171844379,-500.0,0.00018273,2]
[388446588,1759171844389,-500.0,0.00018273,2]
[388446590,1759171844399,-500.0,0.00018273,2]
[388446592,1759171844408,-188.0,0.00018274,2]
[388446594,1759171844418,-1680.0,0.00018275,2]
[388446596,1759171844428,-168.86,0.00018286,2]
[388446598,1759171844437,-3232.01255194,0.0001829,2]
[388446600,1759171844448,-20000.0,0.0001829,2]
[388446602,1759171844458,-170.13813178,0.0001829,2]
[388446604,1759171844467,-151.0,0.00018297,2]
[388446606,1759171844476,-10000.0,0.00018299,2]
[388446608,1759171844486,-150.0,0.00018299,2]
[388446610,1759171844496,-1073.25,0.000183,2]
[388446612,1759171844508,-22741.06,0.000183,2]
[388446614,1759171844519,-4098.69,0.000183,2]
[388446616,1759171844529,-233772.04470154,0.000183,3]
[388446618,1759171844542,-148020.68986993,0.000183,3]
[388446788,1759171846249,-2660.594965,0.0001829,2]
[388446794,1759171846299,-364.565035,0.0001829,2]
[388446796,1759171846309,-5109.434965,0.000183,3]
[388446798,1759171846321,-2439.168984,0.000183,3]
[388446809,1759171846412,-1090.0,0.000183,3]
[388446821,1759171846515,-1088.9,0.000183,3]
[388446825,1759171846570,-97949.1976457,0.000183,3]
[388446826,1759171846584,-477.27255658,0.000183,3]
[388446927,1759172024339,194.39943741,0.00016545,2]
[388447051,1759172333241,194.39943741,0.00016543,2]
[388447166,1759172572407,1444.0,0.00029041,120]
[388447728,1759172927883,161.02,8.34e-05,2]
[388447854,1759172984030,514.03,0.00030137,120]
[388447979,1759173032342,-500.0,0.00016638,2]
[388447980,1759173032353,-500.0,0.00016638,2]
[388447981,1759173032363,-500.0,0.00016638,2]
[388447982,1759173032374,-500.0,0.00016638,2]
[388447983,1759173032384,-64.39511108,0.00016638,2]
[388447984,1759173032396,-435.60488892,0.00016638,2]
[388447985,1759173032408,-500.0,0.00016638,2]
[388447986,1759173032419,-500.0,0.00016638,2]
[388447987,1759173032429,-500.0,0.00016638,2]
[388447988,1759173032439,-500.0,0.00016638,2]
[388447989,1759173032449,-500.0,0.00016638,2]
[388447990,1759173032459,-500.0,0.00016638,2]
[388447991,1759173032471,-571.452813,0.00016638,2]
[388447992,1759173032480,-500.0,0.00016638,2]
[388447993,1759173032491,-500.0,0.00016638,2]
[388447994,1759173032502,-500.0,0.00016638,2]
[388447995,1759173032512,-500.0,0.00016638,2]
[388447996,1759173032523,-500.0,0.00016638,2]
[388447997,1759173032534,-500.0,0.00016638,2]
[388447998,1759173032544,-500.0,0.00016638,2]
[388447999,1759173032555,-500.0,0.00016638,2]
[388448000,1759173032565,-500.0,0.00016638,2]
[388448001,1759173032575,-228.67703513,0.00016638,2]
[388448002,1759173032589,-271.32296487,0.00016638,2]
[388448003,1759173032599,-195.0,0.00016639,2]
[388448004,1759173032610,-195.0,0.00016639,2]
[388448005,1759173032626,-341.57578412,0.00016639,2]
[388448006,1759173032636,-818.65617032,0.00016639,2]
[388448007,1759173032662,-658.25,0.00016639,2]
[388448008,1759173032674,-1116.56336739,0.00016639,2]
[388448010,1759173032685,-300.0,0.00016639,2]
[388448013,1759173032696,-150.0,0.00016644,2]
[388448015,1759173032706,-150.0,0.00016644,2]
[388448017,1759173032716,-150.0,0.00016644,2]
[388448019,1759173032726,-150.0,0.00016644,2]
[388448021,1759173032736,-150.0,0.00016644,2]
[388448023,1759173032746,-150.0,0.00016644,2]
[388448025,1759173032756,-150.0,0.00016644,2]
[388448027,1759173032766,-150.0,0.00016644,2]
[388448029,1759173032775,-150.0,0.00016644,2]
[388448031,1759173032786,-150.0,0.00016644,2]
[388448033,1759173032796,-150.0,0.00016644,2]
[388448035,1759173032806,-150.3961629,0.00016644,2]
[388448037,1759173032816,-150.00000001,0.00016644,2]
[388448040,1759173032826,-159.9995931,0.00016644,2]
[388448044,1759173032836,-150.0,0.00016644,2]
[388448047,1759173032846,-150.0,0.00016644,2]
[388448051,1759173032856,-150.0,0.00016644,2]
[388448055,1759173032876,-150.0,0.00016644,2]
[388448058,1759173032892,-150.0,0.00016644,2]
[388448060,1759173032902,-322.6107,0.00016665,2]
[388448062,1759173032912,-311.37414494,0.00016665,2]
[388448064,1759173032926,-312.21295954,0.00016665,2]
[388448066,1759173032936,-151.0,0.00016665,2]
[388448068,1759173032946,-239.84119403,0.00016665,2]
[388448071,1759173032955,-599.60298507,0.00016665,2]
[388448073,1759173032966,-161.02,0.00016679,2]
[388448075,1759173032976,-201.043557,0.000167,2]
[388448077,1759173032986,-150.0,0.0001672,2]
[388448079,1759173032996,-250.0,0.00016733,2]
[388448081,1759173033005,-751.79715125,0.00016805,2]
[388448083,1759173033017,-248.20284875,0.00016805,2]
[388448085,1759173033027,-167.57,0.00016859,2]
[388448088,1759173033037,-2028.56,0.00016907,2]
[388448090,1759173033047,-992.04,0.00016961,2]
[388448092,1759173033058,-152.16273683,0.00017,2]
[388448094,1759173033071,-97.83726317,0.00017,2]
[388448096,1759173033080,-150.0,0.00017002,7]
[388448099,1759173033091,-52.16273683,0.00017109,2]
[388448102,1759173033114,-447.83726317,0.00017109,2]
[388448104,1759173033124,-303.95025726,0.00017192,2]
[388448107,1759173033136,-53.44974274,0.00017192,2]
[388448109,1759173033146,-151.0,0.00017213,2]
[388448111,1759173033156,-167.89,0.00017375,2]
[388448113,1759173033166,-168.387,0.00017423,2]
[388448115,1759173033176,-323.9973616,0.00017428,2]
[388448118,1759173033192,-1711.4776384,0.00017428,2]
[388448120,1759173033201,-1000.0,0.0001744,2]
[388448122,1759173033211,-2000.0,0.000175,2]
[388448124,1759173033222,-150.0,0.00017568,2]
[388448126,1759173033232,-422.0,0.000176,2]
[388448129,1759173033242,-218.77,0.00017636,2]
[388448131,1759173033253,-200.0,0.00017757,2]
[388448133,1759173033268,-151.0,0.00017761,2]
[388448136,1759173033279,-5772.8389,0.00017789,2]
[388448138,1759173033289,-841.66426054,0.0001782,2]
[388448140,1759173033300,-700.0,0.00017913,2]
[388448142,1759173033310,-218.12,0.00018,2]
[388448144,1759173033320,-4113.0,0.00018032,2]
[388448146,1759173033330,-6232.0,0.00018032,2]
[388448229,1759173034147,-18916.0,0.00018032,2]
[388448232,1759173034170,-334.5472959,0.00018034,2]
[388448234,1759173034180,-248.71531821,0.00018034,2]